Cogmind - Beta 17 @@@ ROGUE MODE // 2026.07.30 @ 21:16:52 Player: hellbent Result: Destroyed by Y-54 Guardian with Flak Gun Performance ------------- Evolutions (3) 1500 Regions Visited (4) 800 Robots Destroyed (62) 310 Value Destroyed (2450) 2450 Prototype IDs (8) 160 Alien Tech Used (0) 0 Bonus (814) 814 TOTAL SCORE: 6034 Bonus ------- Pacifist 200 High Alert Combat Kills 614 Cogmind --------- Core Integrity 0/700 Matter 262/300 Energy 42/100 System Corruption 10% Temperature Cool (6) Movement Core (50) Location -7/Factory Parts ------- > --- POWER (1) -------- (None) > --- PROPULSION (3) --- (None) > --- UTILITY (6) ------ Advanced Weight Redist. System Machine Analyzer ECM Suite > --- WEAPON (3) ------- (None) > --- INVENTORY (5) ---- Improved Ion Engine Improved Ion Engine Wheel Precision Grenade Launcher Precision Grenade Launcher Peak State ------------ > --- POWER ------------ Improved Ion Engine > --- PROPULSION ------- Advanced Treads Wheel Wheel > --- UTILITY ---------- Cooling System High-capacity Storage Unit Machine Analyzer Matter Filter Hardlight Generator System Shield > --- WEAPON ----------- Improved EM Pulse Cannon Advanced Assault Cannon Precision Grenade Launcher > --- INVENTORY -------- Ion Engine Ion Engine Ion Engine Improved Ion Engine Light Treads Light Treads Wheel Compact Wheel Cooling System Cooling System High-capacity Storage Unit Compact Battery Medium Matter Pod Advanced Weight Redist. System Machine Analyzer ECM Suite Light Armor Plating Shock Bomb Launcher Shock Bomb Launcher Grenade Launcher [Rating: 39] Favorites ----------- Power Improved Ion Engine Engine Improved Ion Engine Propulsion Wheel Treads Light Treads Wheel Wheel Utility High-capacity Storage Unit Device Hardlight Generator Storage High-capacity Storage Unit Processor Machine Analyzer Hackware System Shield Protection Light Armor Plating Weapon Improved Light Cannon Energy Gun Small Laser Energy Cannon Particle Cannon Ballistic Gun Assault Rifle Ballistic Cannon Improved Light Cannon Launcher Precision Grenade Launcher Build | -11 -10 -9 -8 -7 ------- Run | Yrd Mat Mat Mat Fac Slots Evolved 6 | . . 2 2 2 Power . | . . . . . Propulsion 1 | . . . . 1 Utility 4 | . . 2 1 1 Weapon 1 | . . . 1 . Parts Attached 56 | 6 7 13 4 26 Power 5 | 1 . 1 . 3 Engine 5 | 1 . 1 . 3 Core . | . . . . . Reactor . | . . . . . Propulsion 11 | 2 . 4 . 5 Treads 6 | . . 4 . 2 Leg . | . . . . . Wheel 5 | 2 . . . 3 Hover . | . . . . . Flight . | . . . . . Utility 17 | 1 4 5 2 5 Device 11 | . 3 4 1 3 Storage 2 | 1 1 . . . Processor 2 | . . 1 . 1 Hackware 1 | . . . 1 . Protection 1 | . . . . 1 Artifact . | . . . . . Weapon 23 | 2 3 3 2 13 Energy Gun 5 | . 3 . 1 1 Energy Cannon 8 | . . . 1 7 Ballistic Gun 2 | 2 . . . . Ballistic Cannon 5 | . . 2 . 3 Launcher 3 | . . 1 . 2 Special Weapon . | . . . . . Impact Weapon . | . . . . . Slashing Weapon . | . . . . . Piercing Weapon . | . . . . . Special Melee Weapon . | . . . . . Unidentified Prototypes 4 | . 1 . 1 2 Parts Lost 16 | . . 2 . 14 Power 2 | . . . . 2 Propulsion 5 | . . 1 . 4 Utility 7 | . . 1 . 6 Weapon 2 | . . . . 2 Highest Loss Streak 3 | . . 1 . 3 To Critical Strikes . | . . . . . Average Backups 17 | 2 8 17 19 18 Power 3 | . 1 4 4 3 Propulsion 3 | 1 2 3 4 3 Utility 7 | . 3 7 10 7 Weapon 2 | . 1 1 1 4 Tool/Special . | . . . . . Unused Backups 20 | . 1 . 3 16 Power 7 | . 1 . 1 5 Propulsion 3 | . . . . 3 Utility 6 | . . . 2 4 Weapon 4 | . . . . 4 Tool/Special . | . . . . . Average Slot Usage (%) 89 | . 96 90 97 85 Engine 8 | . 14 11 9 6 Treads 5 | . . 12 3 6 Wheel 13 | . 28 9 14 11 Device 17 | . 11 17 18 18 Storage 8 | . 14 11 9 6 Processor 6 | . . 6 9 6 Hackware 3 | . . . 8 3 Energy Gun 3 | . 8 15 . . Energy Cannon 8 | . . . 7 13 Ballistic Gun 1 | . 19 . . . Ballistic Cannon 7 | . . 5 17 5 Peak Build Rating 39 | 6 10 19 26 39 Average Rating 23 | 4 7 13 23 29 On Entrance 11 | . 6 8 19 25 Avg Prop Armor Cover (%) 6 | . . . . 6 Naked Turns . | . . . . . Heaviest Build 78 | 13 49 61 66 78 Greatest Support 42 | 20 20 40 40 42 Greatest Overweight (x) 6 | . 2 2 3 6 Average Overweight (x) 2 | . 1 1 2 2 Largest Inventory Capacity 20 | 8 20 20 20 20 Average Capacity 19 | 7 19 20 20 19 Most Carried 20 | 3 13 20 20 20 Average Carried 17 | 2 8 17 19 18 Final Capacity 20 | 8 20 20 20 5 Final Carried 20 | 3 13 19 20 5 Class Distribution -------------------- 57% | Tank 29% | Mutant 8% | Scavenger-Mutant 5% | Skirmisher Dominant Class ---------------- Mutant | -10/Materials Mutant | -9/Materials Tank | -8/Materials Tank | -7/Factory Resources | -11 -10 -9 -8 -7 ----------- Run | Yrd Mat Mat Mat Fac Matter Collected 1500 | 195 245 180 123 757 Remotely . | . . . . . Salvage Created 1817 | . . 218 160 1439 Parts 100 | . . 24 14 62 Haulers Intercepted . | . . . . . Recyclers Shooed 1 | . . . . 1 Parts Field Recycled . | . . . . . Retrieved Matter . | . . . . . Parts Self-Destructed . | . . . . . Prevented . | . . . . . Parts Restored . | . . . . . Kills | -11 -10 -9 -8 -7 ------- Run | Yrd Mat Mat Mat Fac Combat Hostiles Destroyed 51 | . . 11 3 37 Guns 7 | . . 7 . . Cannons 21 | . . 1 3 17 AOE 22 | . . 3 . 19 Classes Destroyed 12 | . . 2 1 9 Worker 2 | . . . . 2 Builder 4 | . . . . 4 Recycler 1 | . . . . 1 Mechanic 2 | . . . . 2 Watcher 2 | . . . 1 1 Swarmer 10 | . . 9 . 1 Grunt 30 | . . . . 30 Brawler 1 | . . . . 1 Duelist 1 | . . . . 1 Protector 1 | . . . . 1 Sentry 5 | . . 2 3 . Programmer 3 | . . . . 3 Best Kill Streak 17 | . . 4 2 17 Combat Bots Only 12 | . . 4 2 12 Max Kills in Single Turn 4 | . . 3 1 4 Gunslinging 1 | . . 1 . . Exploded 4 | . . 3 . 4 Melee . | . . . . . Uniques/NPCs Destroyed . | . . . . . Combat | -11 -10 -9 -8 -7 -------- Run | Yrd Mat Mat Mat Fac Hostile Shots Fired 280 | . 3 73 . 204 Missed 87 | . 1 23 . 63 Hits 193 | . 2 50 . 141 Melee 1 | . . . . 1 Projectile 192 | . 2 50 . 140 Critical Strikes 12 | . . 3 . 9 Damage Taken 3127 | . 31 501 . 2595 Core 750 | . 15 30 . 705 Absorbed by Shields 88 | . . 84 . 4 Core Remaining (%) 96 | 100 94 92 100 . Volleys Fired 104 | . . 19 6 79 Largest 3 | . . 2 3 3 Hottest 240 | . . 80 134 240 Shots Fired 196 | . . 35 18 143 Gun 30 | . . 30 . . Cannon 140 | . . 2 18 120 Launcher 26 | . . 3 . 23 Special . | . . . . . Kinetic 28 | . . 2 12 14 Thermal 127 | . . 30 6 91 Explosive 26 | . . 3 . 23 Electromagnetic 15 | . . . . 15 Robot Hit Streak 10 | . . 5 6 10 Robot Miss Streak 6 | . . 2 4 6 Penetration Max . | . . . . . Secondary Targets 2 | . . 2 . . Max Gunslinging Chain 1 | . . 1 . . Shots Hit Robots 109 | . . 20 7 82 Core Hits 114 | . . 12 4 98 Critical Kills 1 | . . . . 1 Critical Parts Destroyed . | . . . . . Critical Strikes 4 | . . . 1 3 Meltdown 1 | . . . . 1 Blast 2 | . . . 1 1 Corrupt 1 | . . . . 1 Melee Attacks . | . . . . . Impact . | . . . . . Slashing . | . . . . . Piercing . | . . . . . Sneak Attacks . | . . . . . Combat Hostiles . | . . . . . Follow-up Attacks . | . . . . . Damage Inflicted 5944 | . . 327 147 5470 Guns 212 | . . 212 . . Cannons 2051 | . . 24 147 1880 Explosions 3681 | . . 91 . 3590 Melee . | . . . . . Ramming . | . . . . . Kinetic 267 | . . 24 66 177 Thermal 2185 | . . 212 81 1892 Explosive 3245 | . . 91 . 3154 Electromagnetic 247 | . . . . 247 Impact . | . . . . . Slashing . | . . . . . Piercing . | . . . . . Highest Corruption 10 | . . . . 10 Average Corruption 7 | . . . . 7 Corruption Purged . | . . . . . Corruption Blocked . | . . . . . Effects 30 | . . . . 30 Message Errors 5 | . . . . 5 Matter Fused 6 | . . . . 6 Heat Flow Errors 6 | . . . . 6 Parts Rejected 4 | . . . . 4 Data Loss (minor) 4 | . . . . 4 Data Loss (major) 1 | . . . . 1 Alerts 2 | . . . . 2 Misdirections 1 | . . . . 1 Weapon Failures 1 | . . . . 1 Overload Shots . | . . . . . Overflow Damage 103 | . . . . 103 Projectiles 47 | . . . . 47 Explosions 56 | . . . . 56 Melee . | . . . . . Knockbacks 3 | . . . 1 2 Impact . | . . . . . Kinetic 3 | . . . 1 2 Secondary . | . . . . . Self-Inflicted Damage 395 | . . . . 395 Shots 6 | . . . . 6 Rammed . | . . . . . Targets Rammed . | . . . . . Kicked . | . . . . . Crushed . | . . . . . Highest Temperature 551 | . . 12 27 551 Average Temperature 150 | . . 10 18 155 Received Heat Transfer 1246 | . 18 87 . 1141 Effects 17 | . . . . 17 Shutdowns 3 | . . . . 3 Energy Bleed 3 | . . . . 3 Interference 1 | . . . . 1 Matter Decay 2 | . . . . 2 Short Circuit 4 | . . . . 4 Damage (major) 4 | . . . . 4 Siege Activations . | . . . . . Martial Activations . | . . . . . Shielding Activations . | . . . . . Robots Disrupted . | . . . . . Combat Hostiles . | . . . . . Robots Corrupted . | . . . . . Combat Hostiles . | . . . . . Parts Fried 3 | . . . . 3 Impact Corruptions . | . . . . . Robots Melted 1 | . . . . 1 Combat Hostiles 1 | . . . . 1 Parts Melted 7 | . . 1 . 6 Heat Transferred 3602 | . . 475 148 2979 Parts Sabotaged . | . . . . . Parts Stolen . | . . . . . Parts Stripped . | . . . . . Power Chain Reactions . | . . . . . Alert | -11 -10 -9 -8 -7 ------- Run | Yrd Mat Mat Mat Fac Maximum Alert Level 4 | . . . . 4 Low Security (%) 74 | 100 100 100 100 50 Level 1 3 | . . . . 7 Level 2 8 | . . . . 16 Level 3 5 | . . . . 10 Level 4 7 | . . . . 14 Level 5 . | . . . . . High Security . | . . . . . Max Security . | . . . . . Peak Influence 1135 | . . 107 52 1135 Initial 44 | . . . 44 5 Average 216 | . . 42 13 399 Influence Increases 1972 | . . 319 122 1531 Destroy 0b10 Robot/C 1000 | . . 220 60 720 Destroy 0b10 Robot/NC 60 | . . . 5 55 Destroy Leader 214 | . . 50 32 132 Successful Hack 52 | . . 9 21 22 Disable Machine 225 | . . . . 225 Anti-Garrison Action 150 | . . . . 150 Destroy Structure 121 | . . 10 4 107 Lose Combat Pursuer 150 | . . 30 . 120 Influence Decreases 857 | . . 212 216 429 Entered New Map 71 | . . . 63 8 Time Decay 587 | . . 192 114 281 Lost Part 160 | . . 20 . 140 Purge Threat 39 | . . . 39 . Squads Dispatched 14 | . 2 1 . 11 Investigation 3 | . 1 . . 2 Extermination 2 | . . . . 2 Reinforcement 5 | . 1 1 . 3 Assault 4 | . . . . 4 Garrison . | . . . . . Intercept . | . . . . . Searches Triggered . | . . . . . Construction Impeded 2 | . . . . 2 Haulers Reinforced . | . . . . . Active Scanning Responses . | . . . . . Cargo Convoy Interrupts 1 | . . . . 1 Stealth | -11 -10 -9 -8 -7 --------- Run | Yrd Mat Mat Mat Fac Distress Signals 3 | . 1 . 1 1 Communications Jammed . | . . . . . Distress Signals . | . . . . . Times Spotted 82 | . 2 18 9 53 Peak Tracking Total 8 | . 2 8 4 8 Tactical Retreats 7 | . . 2 . 5 Traps | -11 -10 -9 -8 -7 ------- Run | Yrd Mat Mat Mat Fac Traps Triggered 3 | . . . . 3 Indirectly . | . . . . . Trap Hack Attempts . | . . . . . Triggered . | . . . . . Disarmed . | . . . . . Reprogrammed . | . . . . . Reused . | . . . . . Traps Extracted . | . . . . . Installed . | . . . . . Triggered . | . . . . . Machines | -11 -10 -9 -8 -7 ---------- Run | Yrd Mat Mat Mat Fac Machines Disabled 16 | . . . . 16 Max in Single Turn 6 | . . . . 6 Garrison Access 1 | . . . . 1 Machines Repaired . | . . . . . Machines Dismantled . | . . . . . Machines Sabotaged . | . . . . . Overloaded Fab Kills . | . . . . . Hacking | -11 -10 -9 -8 -7 --------- Run | Yrd Mat Mat Mat Fac Machines Accessed 11 | . . 1 4 6 Terminals 7 | . . 1 4 2 Fabricators 1 | . . . . 1 Repair Stations . | . . . . . Recycling Units . | . . . . . Scanalyzers 2 | . . . . 2 Garrison Access 1 | . . . . 1 Total Hacks 30 | . . 3 14 13 Successful 21 | . . 2 11 8 Failed 8 | . . 1 3 4 Catastrophic 2 | . . . . 2 Database Lockouts 1 | . . . . 1 Manual 11 | . . 2 7 2 Terminals 19 | . . 3 14 2 Fabricators 3 | . . . . 3 Repair Stations . | . . . . . Recycling Units . | . . . . . Scanalyzers 7 | . . . . 7 Garrison Access 1 | . . . . 1 Terminal Hacks 8 | . . 1 7 . Part Schematic 1 | . . . 1 . Prototype ID Bank 2 | . . . 2 . Unreport Threat 1 | . . . 1 . Locate Traps 3 | . . 1 2 . Hauler Manifests 1 | . . . 1 . Fabricator Hacks 2 | . . . . 2 Load Schematic 1 | . . . . 1 Build 1 | . . . . 1 Repair Station Hacks . | . . . . . Recycling Unit Hacks . | . . . . . Scanalyzer 6 | . . . . 6 Insert Component 3 | . . . . 3 Analyze 2 | . . . . 2 Retrieve Study 1 | . . . . 1 Garrison Access Hacks . | . . . . . Unauthorized Hacks 5 | . . 1 4 . Terminals 5 | . . 1 4 . Botnet 5 | . . 1 4 . Fabricators . | . . . . . Repair Stations . | . . . . . Recycling Units . | . . . . . Scanalyzers . | . . . . . Garrison Access . | . . . . . Data Cores Recovered . | . . . . . Used . | . . . . . Hacking Detections 11 | . . 1 4 6 Full Trace Events 1 | . . . . 1 Feedback Events . | . . . . . Feedback Blocked . | . . . . . Robot Schematics Acquired . | . . . . . Robots Built . | . . . . . Authchips . | . . . . . Time . | . . . . . Total Robot Build Rating . | . . . . . Part Schematics Acquired 3 | . . . 1 2 Parts Built 3 | . . . . 3 Authchips . | . . . . . Time 51 | . . . . 51 Total Part Build Rating 3 | . . . . 3 Part Studies Acquired 1 | . . . . 1 Parts Repaired . | . . . . . Time . | . . . . . Parts Recycled . | . . . . . Recycled Matter . | . . . . . Retrieved Matter . | . . . . . Retrieved Components . | . . . . . Parts Scanalyzed 2 | . . . . 2 Part Schematics Acquired 2 | . . . . 2 Parts Damaged . | . . . . . Bothacking | -11 -10 -9 -8 -7 ------------ Run | Yrd Mat Mat Mat Fac Used RIF Installer . | . . . . . Robots Hacked . | . . . . . Non-combat . | . . . . . Combat . | . . . . . Robot Hacks Applied . | . . . . . Relay Couplers Released 3 | . . . . 3 Machine Destruction 3 | . . . . 3 Fabnet Peak Effective % . | . . . . . Robots Rewired . | . . . . . Allies Hacked . | . . . . . Hacks Repelled . | . . . . . Allies | -11 -10 -9 -8 -7 -------- Run | Yrd Mat Mat Mat Fac Total Allies . | . . . . . Largest Group . | . . . . . Highest-Rated Group . | . . . . . Highest-Rated Ally . | . . . . . Total Orders . | . . . . . Ally Attacks . | . . . . . Total Damage . | . . . . . Kills . | . . . . . Allies Corrupted . | . . . . . Allies Melted . | . . . . . Intel | -11 -10 -9 -8 -7 ------- Run | Yrd Mat Mat Mat Fac Active Infowar (turns) 2125 | . 158 249 542 1176 Terrain 158 | . 158 . . . Machine Analysis 1966 | . . 249 542 1175 ECM 1 | . . . . 1 Robot Analysis Total . | . . . . . Derelict Logs Recovered . | . . . . . Drone Launches . | . . . . . Drone Recoveries . | . . . . . Exploration | -11 -10 -9 -8 -7 ------------- Run | Yrd Mat Mat Mat Fac Turns Passed 2545 | 45 225 414 542 1319 Spaces Moved 1586 | 42 183 217 353 791 Core 26 | 1 . . . 25 Treads 156 | . . 62 31 63 Legs . | . . . . . Wheels 1404 | 41 183 155 322 703 Hover . | . . . . . Flight . | . . . . . Fastest Speed 50 | 50 80 95 125 50 Average Speed 127 | 79 108 146 135 125 Slowest Speed 240 | 80 110 240 240 232 Overloaded Moves . | . . . . . Propulsion Burnouts . | . . . . . Robots Hopped . | . . . . . Potential Cave-ins . | . . . . . Cave-ins Triggered . | . . . . . Exploration Rate (%) 22 | 4 38 23 27 21 Regions Visited 4 Branch Regions . Pre-discovered Areas . | . . . . . Known Exits Taken . | . . . . . Unknown Exits Taken 4 | 1 1 1 1 . Scrap Searched . | . . . . . Spaces Dug . | . . . . . Terrain Destroyed 146 | . . 10 3 133 Melee . | . . . . . Projectile 7 | . . . 3 4 AOE 139 | . . 10 . 129 Terrain Rammed . | . . . . . Walls Destroyed . | . . . . . Machines Disabled . | . . . . . Actions | -11 -10 -9 -8 -7 --------- Run | Yrd Mat Mat Mat Fac Total 1933 | 50 210 272 405 996 Wait 67 | . . 2 19 46 Move 1582 | 41 182 216 352 791 Hop . | . . . . . Pick Up 41 | 3 12 7 7 12 Fast Attach 39 | 6 6 6 4 17 Attach 17 | . 1 2 1 13 Detach 7 | . 1 2 . 4 Swap 27 | . 1 14 7 5 Drop 49 | . 7 4 9 29 Fire 104 | . . 19 6 79 Melee . | . . . . . Ram . | . . . . . Kick . | . . . . . Crush . | . . . . . Escape Stasis . | . . . . . Rewire . | . . . . . Trap . | . . . . . Miscellaneous . | . . . . . Route ------- -11/Scrapyard -10/Materials (discovered 2 exits: *Mat / [*Min]) -9/Materials (discovered 2 exits: *Mat / [*Sto]) -8/Materials -7/Factory History --------- Turn | Location | Event 19 | -11/Scrapyard | Discovered new exit (range 15) 46 | -11/Scrapyard | Entered Materials 47 | -10/Materials | Met a group of wandering Federalists 227 | -10/Materials | Discovered new exit (range 5) 257 | -10/Materials | Discovered new exit (range 14) 271 | -10/Materials | Entered another Materials area 271 | -9/Materials | Evolved 2 slots: Utility x2 274 | -9/Materials | Discovered new exit (range 15) 305 | -9/Materials | Build established: Mutant 515 | -9/Materials | Discovered new exit (range 16) 685 | -9/Materials | Entered another Materials area 685 | -8/Materials | Evolved 2 slots: Utility x1, Weapon x1 1060 | -8/Materials | Build established: Tank 1066 | -8/Materials | Discovered new exit (range 5) 1227 | -8/Materials | Entered Factory 1227 | -7/Factory | Evolved 2 slots: Propulsion x1, Utility x1 1339 | -7/Factory | Central database locked down 2022 | -7/Factory | System corruption reached 10% 2027 | -7/Factory | First assault squad dispatched 2141 | -7/Factory | Fabricated Wheel (x3) 2248 | -7/Factory | Lost 3 parts (1n2u) 2262 | -7/Factory | Destroyed 12 combat bots 2275 | -7/Factory | Core integrity fell below 50% 2294 | -7/Factory | Lost 3 parts (1p1n1u) 2464 | -7/Factory | Cargo convoy interrupted 2535 | -7/Factory | Core integrity fell below 20% 2546 | -7/Factory | Destroyed by Y-54 Guardian with Flak Gun Last Messages --------------- floor. 02520_ Imp. Ion Engine destroyed. 02526_ Plasma Cannon destroyed. 02526_ S-27 Virus destroyed. 02530_ System corrupted: Matter fused (-6). 02530_ Wheel+ destroyed. 02530_ G-47 Trooper destroyed. 02532_ C-30 ARC bursts open, deploying its payload. 02532_ S-27 Virus unfolds itself. 02532_ Dropped Hcp. Storage Unit. 02532_ Dropped Imp. Ion Engine. 02533_ Dropped Hvy. Ion Cannon. 02533_ Acquired 51 matter. 02537_ R-06 Scavenger collects Faulty Imp. Spread Laser. 02537_ A-02 Transporter destroyed. 02540_ R-06 Scavenger collects Weight Redist. System. 02543_ R-06 Scavenger collects Deuterium Engine. Map ----- +----------------------------------------------------+ | | | | | | | | | | | | | ?????????????????????????????????????????????????? | | ?????????????????????????????????????????????????? | | ?????????????????????????????????????????????????? | | ?????????????????????????????????????????????????? | | ?????????????????????????????????????????????????? | | ?????????????????????????????????????????????????? | | ?????????????????????????????????????????????????? | | ?????????????????????????????????????### ????????? | | """?"""??????????????????????????????# ####### | | """?"""??????????????????????????????# | | """?"""????????????????????????????? T | | ?????????????????????????????????????# | | ???????????????????????###+###???????# /####### | | ??????????????????????## #???????????????????# | | ??????????????????????? ###?????????????????# | | ??????????????????????? Y ??????????????????# | | ???????????????????????? #???????????????????# | | ???????????????????????? #???????????????????# | | ????????????############# #????????????????????# | | ????????????? #@ #????????????????????# | | ?????????""""?"""" """ + #????????????????????# | | ?????????""""?"""" """ # #????????????????????# | | ?????????""""?"""" """ # r#????????????????????# | | ?????????""""?"""" ?# #????????????????????# | | ?????????""""?"""" ?# #????????????????????# | | ?????????""""?"""" ??# #????????????????????? | | ?????????""""?"""" ! ??# #????????????????????? | | ???????????????? ???# #????????????????????? | | ???????????????######???# #????????????????????? | | ????????????##??????????# #???????????########## | | ???????????? ????????# #???????????# | | ???????????# ??????#as #???????????# | | ???????????+ ] ????# s#???????????# | | ???????????# ??# #???????????# | | ???????????# # #???????????# | | ???????????# + #???????????#* | | ???????????# /! # #???????????# "" | | ???????????# /! ??# !#???????????# "" | | ???????????# ????# *!#???????????# " """ | | ???????????# ??????# **#???????????# "" """ | | ???????????? ????????#**%#???????????# "" """ | | ???????????? ??????????#!**#???????????# | | ????????????????????????#%=[#########+#########+## | | ????????????????????????#!==* | +----------------------------------------------------+ Best States ------------- Heat Dissipation 78 Energy Generation 12 Energy Capacity 265 Matter Stores 300 Matter Capacity 300 Sight Range 16 Terrain Scan Range 14 Terrain Scan Density 10 Additional Mass Support 9 Armor Coverage 150 Evasion (%) 50 Recoil Reduction 2 Matter Filtering 30 Defensive Hacking 10 Item Schematics ----------------- Mni. Grenade Launcher | -8/Materials | Hacked Grenade Launcher | -7/Factory | Scanalyzed Wheel | -7/Factory | Scanalyzed Robot Schematics ------------------ None Fabricated ------------ Wheel | x3 | -7/Factory Repaired ---------- Nothing Studied --------- Wheel | -7/Factory | Hacked Alien Tech Used ----------------- None Achievements -------------- None Challenges ------------ None Game ------ Seed ShiftGreatHoverbase Manual? 0 Play Time 00:34:11 Cumulative 74.1 hours Start 2026.07.30 @ 20:44:22 End 2026.07.30 @ 21:16:52 Sessions 1 Manual Loads 0 Difficulty Rogue Special Mode None Game No. 84 Rogue 84 Adventurer 0 Explorer 0 Win Type - Total 2 Types 2/0/0/0/0/0/0/0/0/0 Lore% 28 Gallery% 40 Achievement% 31 Wizard Run 0 Options --------- Layout 1 ASCII 0 Keyboard 0 Movement Mouse Keybinds 0 Fullscreen 1 Font 24/Smallcaps Map View 50x35 Zoom Use 46% Tactical HUD 1 Map Filters NONE Filters NONE Steam 1 RUN: 70cfba97-3d95-45ab-b3c3-be2ff3c2be1e